bitfinex-derivatives/quotes_ETHF0:USTF0_20250701
["timestamp","ask_amount","ask_price","bid_price","bid_amount"]
[1751333461840,31.50117271,2494.8,2494.7,1.4536]
[1751333462040,31.50117271,2494.8,2494.7,3.0536]
[1751333462241,31.50117271,2494.8,2494.7,2.9936]
[1751333462442,0.80157,2494.6,2494.5,0.80154]
[1751333462642,25.12357,2494.6,2494.5,0.06]
[1751333463145,25.12357,2494.6,2494.5,0.86156]
[1751333466249,25.12357,2494.6,2494.5,0.06]
[1751333467449,28.29348271,2494.6,2494.5,0.06]
[1751333469852,25.12357,2494.6,2494.5,0.06]
[1751333470949,25.12357,2494.6,2494.5,0.86156]
[1751333471355,25.12357,2494.6,2494.5,0.06]
[1751333475462,28.76745429,2494.6,2494.5,0.06]
[1751333475654,0.80162,2494.3,2494.2,5.07403627]
[1751333475858,25.12062,2494.3,2494.2,5.19403627]
[1751333476063,25.12062,2494.3,2494.2,0.7988]
[1751333479169,25.12062,2494.3,2494.2,0.12]
[1751333479765,27.13292,2494.3,2494.2,0.12]
[1751333480770,0.80172,2494.0,2493.9,1.18743627]
[1751333481071,0.80179,2493.8,2493.7,1.18743627]
[1751333481367,0.80179,2493.8,2493.7,1.97]
[1751333481564,0.80179,2493.8,2493.7,2.77182]
[1751333482566,0.6967,2493.9,2493.8,0.80175]
[1751333482567,0.80178,2493.9,2493.8,0.80175]
[1751333482768,25.11978,2493.9,2493.8,4.63613429]
[1751333483368,25.11978,2493.9,2493.8,4.71613429]
[1751333483963,25.11978,2493.9,2493.8,4.80613429]
[1751333484364,25.11978,2493.9,2493.8,4.00438429]
[1751333484566,25.11978,2493.9,2493.8,2.25438429]
[1751333484768,25.11978,2493.9,2493.8,3.81438429]
[1751333485171,25.11978,2493.9,2493.8,2.25438429]
[1751333485466,25.11978,2493.9,2493.8,4.11438429]
[1751333485668,25.11978,2493.9,2493.6,0.6718]
[1751333485669,0.80182,2493.7,2493.6,0.6718]
[1751333485868,0.80182,2493.7,2493.6,1.1918]
[1751333486472,0.80182,2493.7,2493.6,0.52]
[1751333486473,2.87392,2493.7,2493.6,0.52]
[1751333487168,0.80195,2493.3,2493.2,3.2078]
[1751333487362,25.12195,2493.3,2493.2,6.7178]
[1751333487970,25.12195,2493.3,2493.2,3.51]
[1751333488373,25.12195,2493.3,2493.2,4.31198]
[1751333489166,25.12195,2493.3,2493.2,3.51]
[1751333489872,26.53515,2493.3,2493.2,3.51]
[1751333490273,25.12195,2493.3,2493.2,3.51]
[1751333490875,0.80195,2493.3,2493.2,3.51]
[1751333491078,25.12295,2493.3,2493.2,3.51]
[1751333492175,0.80195,2493.3,2493.2,3.51]
[1751333492380,25.12195,2493.3,2493.2,3.51]
[1751333492774,0.80195,2493.3,2493.2,6.56636429]
[1751333492975,25.12195,2493.3,2493.2,6.56636429]
[1751333493774,25.12195,2493.3,2493.2,5.76438429]
[1751333494881,25.12195,2493.3,2493.2,6.56636429]
[1751333495074,25.12195,2493.3,2493.2,5.76438429]
[1751333496182,25.12195,2493.3,2493.2,6.56636429]
[1751333499182,25.12195,2493.3,2493.2,5.76438429]
[1751333499385,25.12195,2493.3,2493.2,6.56636429]
[1751333499686,0.80195,2493.3,2493.2,6.56636429]
[1751333499883,25.12395,2493.3,2493.2,6.56636429]
[1751333500386,25.12395,2493.3,2493.2,7.94406429]
[1751333502788,0.80195,2493.3,2493.2,7.94406429]
[1751333502988,25.12395,2493.3,2493.2,7.94406429]
[1751333504387,0.80193,2493.4,2493.3,0.80191]
[1751333504590,0.80187,2493.6,2493.5,0.80185]
[1751333504785,0.80188,2493.5,2493.4,3.72347429]
[1751333504986,0.80188,2493.5,2493.4,5.63347429]
[1751333505287,0.80188,2493.5,2493.4,2.5772]
[1751333506489,0.80188,2493.5,2493.4,3.37911]
[1751333507593,0.80188,2493.5,2493.4,5.63349429]
[1751333507993,0.80188,2493.5,2493.4,3.37911]
[1751333508491,0.80188,2493.5,2493.4,2.5772]
[1751333508690,0.80188,2493.5,2493.4,3.37911]
[1751333510990,0.80188,2493.5,2493.4,2.5772]
[1751333511199,0.80188,2493.5,2493.4,3.37911]
[1751333512600,0.80188,2493.5,2493.4,4.76731]
[1751333512796,0.80185,2493.7,2493.6,0.80182]
[1751333512993,25.12085,2493.7,2493.6,0.80182]
[1751333513597,0.80185,2493.6,2493.5,3.05625429]
[1751333513797,0.80185,2493.6,2493.5,4.63625429]
[1751333520493,0.80185,2493.6,2493.5,1.58]
[1751333520898,1.47235,2493.6,2493.5,1.58]
[1751333521501,3.61325,2493.6,2493.5,1.58]
[1751333523405,6.82105,2493.6,2493.5,1.58]
[1751333523604,31.13505,2493.6,2493.5,1.58]
[1751333523905,28.32365,2493.6,2493.5,3.83438429]
[1751333524103,28.32365,2493.6,2493.5,4.51918429]
[1751333524399,25.11585,2493.6,2493.5,4.51918429]
[1751333524597,25.11585,2493.6,2493.5,5.32106429]
[1751333527307,25.11585,2493.6,2493.5,4.51918429]
[1751333527909,25.11585,2493.6,2493.5,5.32106429]
[1751333528508,25.11585,2493.6,2493.5,4.51918429]
[1751333528711,25.11585,2493.6,2493.5,2.2648]
[1751333529008,25.11585,2493.6,2493.5,1.58]
[1751333540418,25.11585,2493.6,2493.5,4.63626429]
[1751333540419,0.80185,2493.6,2493.5,4.63626429]
[1751333540624,25.11185,2493.6,2493.5,4.63626429]
[1751333541125,25.11185,2493.6,2493.5,3.83438429]
[1751333541426,25.11185,2493.6,2493.5,1.58]
[1751333542925,28.31965,2493.6,2493.5,1.58]
[1751333548833,25.10985,2493.6,2493.5,4.63626429]
[1751333550029,0.80185,2493.6,2493.5,4.63626429]
[1751333550324,1.49009,2493.8,2493.7,0.80182]
[1751333550530,25.10879,2493.8,2493.7,6.19620429]
[1751333551919,0.80179,2493.8,2493.7,6.19620429]
[1751333552123,25.10879,2493.8,2493.7,6.19620429]
[1751333554028,3.2078,2493.9,2493.8,0.80178]
[1751333554228,0.8017,2494.1,2494.0,0.80169]
[1751333554428,25.1067,2494.1,2494.0,4.59607429]
[1751333555330,25.1067,2494.1,2494.0,3.79438429]
[1751333555531,25.1067,2494.1,2494.0,4.59610429]
[1751333556334,25.1057,2494.1,2494.0,4.59610429]
[1751333556726,0.80168,2494.2,2494.1,0.80166]
[1751333557035,25.10468,2494.2,2494.1,5.37454429]
[1751333557237,25.10468,2494.2,2494.1,2.87636]
[1751333557433,25.10468,2494.2,2494.1,4.68636]
[1751333557932,25.10468,2494.2,2494.1,3.32016]
[1751333558137,25.10468,2494.2,2494.1,2.5185]
[1751333558734,25.10468,2494.2,2494.1,1.6]
[1751333558936,0.80168,2494.2,2494.1,1.6]
[1751333559239,0.80169,2494.1,2494.0,3.05610429]
[1751333559537,0.80169,2494.1,2494.0,4.12438429]
[1751333559738,0.80169,2494.1,2494.0,1.87]
[1751333561341,0.80172,2494.0,2493.9,1.45864]
[1751333561638,0.80172,2494.0,2493.9,1.52864]
[1751333561834,0.80172,2494.0,2493.9,0.7269]
[1751333562341,0.80172,2494.0,2493.9,0.6569]
[1751333562743,0.80172,2494.0,2493.9,2.3969]
[1751333563542,0.80172,2494.0,2493.9,0.6569]
[1751333564044,0.80172,2494.0,2493.9,2.3269]
[1751333574054,0.80182,2493.8,2493.7,0.80181]
[1751333574254,0.80182,2493.8,2493.7,3.15271]
[1751333575153,0.80182,2493.8,2493.7,2.3509]
[1751333576161,0.80182,2493.8,2493.7,1.66]
[1751333576455,2.83852,2493.8,2493.7,1.66]
[1751333582854,5.09290429,2493.8,2493.7,1.66]
[1751333584664,5.09290429,2493.8,2493.3,1.47933]
[1751333584665,0.80191,2493.4,2493.3,1.47933]
[1751333584865,24.296,2493.4,2493.3,6.17371429]
[1751333585158,25.09791,2493.4,2493.3,6.17371429]
[1751333586158,0.6673,2493.7,2493.3,5.37178429]
[1751333586365,0.80185,2493.7,2493.6,2.25438429]
[1751333586564,25.09785,2493.7,2493.6,2.25438429]
[1751333587358,25.09785,2493.7,2493.6,3.05620429]
[1751333588070,25.09785,2493.7,2493.6,4.83620429]
[1751333589072,25.09785,2493.7,2493.6,5.54270429]
[1751333590067,25.09785,2493.7,2493.6,2.96088429]
[1751333590268,25.09785,2493.7,2493.6,2.4165]
[1751333591275,25.09785,2493.7,2493.6,3.21835]
[1751333591670,25.09785,2493.7,2493.6,2.4165]
[1751333592474,0.80185,2493.7,2493.6,5.47273429]
[1751333592669,25.09785,2493.7,2493.6,6.81853429]
[1751333593071,25.09785,2493.7,2493.6,2.85415]
[1751333593371,25.09785,2493.7,2493.6,4.40415]
[1751333595777,25.09785,2493.7,2493.6,2.85415]
[1751333596078,25.09785,2493.7,2493.6,3.9323]
[1751333596378,25.09785,2493.7,2493.6,3.27835]
[1751333596778,25.09785,2493.7,2493.6,2.4765]
[1751333597078,25.09785,2493.7,2493.6,3.27835]
[1751333599183,24.294,2493.7,2493.6,3.27835]
[1751333599488,24.294,2493.7,2493.6,4.62905]
[1751333600079,4.00958,2493.9,2493.8,0.80178]
[1751333600283,28.30358,2493.9,2493.8,4.25178]
[1751333603787,0.80178,2493.8,2493.7,3.05617429]
[1751333604090,0.80178,2493.8,2493.7,4.94617429]
[1751333607989,3.16991271,2494.1,2493.7,4.14438429]
[1751333608190,3.2078,2494.2,2494.1,0.80169]
[1751333608387,3.2078,2494.2,2494.1,4.78607429]
[1751333608583,3.16991271,2494.4,2494.3,0.80162]
[1751333608885,7.17928271,2494.5,2494.4,0.80159]
[1751333609084,31.47028271,2494.5,2494.4,2.49159]
[1751333609289,31.47028271,2494.5,2494.4,3.17249]
[1751333609683,30.66871271,2494.5,2494.4,3.17249]
[1751333609987,27.4988,2494.5,2494.4,3.17249]
[1751333610189,3.2078,2494.5,2494.4,4.47069]
[1751333610590,4.00936,2494.5,2494.4,4.47069]
[1751333611493,0.80156,2494.5,2494.4,4.47069]
[1751333611694,25.09056,2494.5,2494.4,4.47069]
[1751333612595,24.289,2494.5,2494.4,4.47069]
[1751333612796,4.00929,2494.8,2494.7,0.8015]
[1751333612998,0.6892,2495.0,2494.7,3.92438429]
[1751333613198,6.37771271,2495.1,2495.0,0.8014]
[1751333613199,3.2078,2495.1,2495.0,0.8014]
[1751333613689,3.2078,2495.1,2495.0,2.3414]
[1751333615092,25.08736,2495.2,2495.1,0.80137]
[1751333615286,24.286,2495.2,2495.1,1.55]
[1751333615492,25.08733,2495.2,2495.1,1.55]
[1751333619898,0.80133,2495.2,2495.1,1.55]
[1751333620199,25.08133,2495.2,2495.1,1.55]
[1751333623399,0.80133,2495.2,2495.1,4.60575429]
[1751333623600,0.80125,2495.5,2495.4,0.80123]
[1751333623802,5.21068,2495.8,2495.7,0.80117]
[1751333623803,3.2078,2495.8,2495.7,0.80117]
[1751333624005,4.00894,2495.8,2495.7,7.63555429]
[1751333624404,0.80114,2495.8,2495.7,7.63555429]
[1751333624706,0.80114,2495.8,2495.7,6.83438429]
[1751333625305,0.80114,2495.8,2495.7,7.63555429]
[1751333627502,0.80114,2495.8,2495.7,6.83438429]
[1751333628507,0.80114,2495.8,2495.7,7.63555429]
[1751333628698,0.80114,2495.8,2495.7,6.83438429]
[1751333629307,0.80114,2495.8,2495.7,7.63555429]
[1751333632006,0.6644,2496.3,2495.9,2.00278]
[1751333632210,0.80097,2496.4,2496.3,0.80096]
[1751333632414,0.80097,2496.4,2496.3,7.91534429]
[1751333632615,0.80094,2496.5,2496.4,0.80092]
[1751333632918,0.80094,2496.5,2496.4,2.61092]
[1751333633115,0.80094,2496.5,2496.4,1.81]
[1751333633816,0.80094,2496.5,2496.4,2.61095]
[1751333634012,0.80094,2496.5,2496.4,1.81]
[1751333634713,0.80094,2496.5,2496.4,2.61095]
[1751333635217,0.6646,2496.6,2496.4,1.81]
[1751333635412,1.46551,2496.6,2496.5,3.05530429]
[1751333635611,1.46551,2496.6,2496.5,5.07302497]
[1751333635810,1.46551,2496.6,2496.5,4.66278429]
[1751333636104,1.46551,2496.6,2496.5,3.95438429]
[1751333636911,2.86661,2496.6,2496.5,3.95438429]
[1751333638619,2.86661,2496.6,2496.5,1.7]
[1751333639810,27.13061,2496.6,2496.5,1.7]
[1751333640214,27.13061,2496.6,2496.5,2.50092]
[1751333640414,27.13061,2496.6,2496.5,1.7]
[1751333641821,27.13061,2496.6,2496.5,2.50092]
[1751333642222,1.46551,2496.6,2496.5,4.75530429]
[1751333642422,1.46551,2496.6,2496.5,3.95438429]
[1751333645828,1.46551,2496.6,2496.5,1.7]
[1751333646925,1.46551,2496.6,2496.5,2.50092]
[1751333647426,1.46551,2496.6,2496.5,4.75530429]
[1751333647827,1.46551,2496.6,2496.5,3.95438429]
[1751333648327,25.72451,2496.6,2496.5,3.95438429]
[1751333649333,25.72451,2496.6,2496.5,4.75530429]
[1751333651031,25.72451,2496.6,2496.5,3.95438429]
[1751333651226,25.72451,2496.6,2496.5,4.75530429]
[1751333651427,25.72451,2496.6,2496.5,3.95438429]
[1751333653134,25.72451,2496.6,2496.5,4.75530429]
[1751333653435,25.72451,2496.6,2496.5,3.95438429]
[1751333654130,25.72451,2496.6,2496.5,4.75530429]
[1751333654728,25.72451,2496.6,2496.5,3.95438429]
[1751333655130,25.72451,2496.6,2496.5,4.75530429]
[1751333656029,1.45508,2496.7,2496.6,0.80089]
[1751333656235,3.16991271,2497.0,2496.8,0.80082]
[1751333656436,3.16991271,2497.0,2496.9,3.05517429]
[1751333656633,27.42591271,2497.0,2496.9,4.82517429]
[1751333657139,3.16991271,2497.1,2497.0,0.80076]
[1751333657437,3.16991271,2497.1,2497.0,4.23076]
[1751333657438,3.97064271,2497.1,2497.0,4.23076]
[1751333658534,3.97064271,2497.1,2497.0,3.43]
[1751333658836,4.00853,2497.1,2497.0,3.43]
[1751333659039,28.91773,2497.1,2497.0,5.68438429]
[1751333659339,32.1124287,2497.1,2497.0,2.25438429]
[1751333659530,32.1124287,2497.1,2497.0,3.82438429]
[1751333659935,28.91773,2497.1,2497.0,3.82438429]
[1751333660631,3.1946987,2497.2,2497.1,0.80073]
[1751333660833,3.1946987,2497.2,2497.1,6.27073]
[1751333661035,6.4024987,2497.4,2497.3,0.80066]
[1751333661230,3.1946987,2497.4,2497.3,6.98504429]
[1751333661538,3.1946987,2497.6,2497.5,0.8006]
[1751333661740,27.4608,2497.7,2497.6,3.05494429]
[1751333661936,27.4608,2497.7,2497.6,4.96494429]
[1751333662133,3.2078,2497.7,2497.6,4.96494429]
[1751333664339,3.2078,2498.1,2498.0,0.80044]
[1751333664534,7.17393718,2498.1,2498.0,4.77482429]
[1751333664838,3.2078,2498.1,2498.0,4.77482429]
[1751333665234,0.666,2498.4,2498.3,0.80034]
[1751333665439,3.18987271,2498.8,2498.7,0.80021]
[1751333665636,3.18987271,2498.9,2498.8,0.80018]
[1751333665837,3.18987271,2498.9,2498.8,4.58018]
[1751333666039,0.80012,2499.0,2498.9,0.80015]
[1751333666340,6.34223175,2499.0,2498.9,3.95438429]
[1751333666532,3.2078,2499.0,2498.7,3.05457429]
[1751333666736,3.980503,2498.8,2498.7,4.67457429]
[1751333666941,0.80018,2498.8,2498.7,4.67457429]
[1751333667341,4.780663,2498.9,2498.8,0.80018]
[1751333667543,0.80016,2498.9,2498.8,2.56018]
[1751333668245,0.80016,2498.9,2498.8,1.76]
[1751333670540,0.80016,2498.9,2498.8,4.01438429]
[1751333671942,0.80016,2498.9,2498.8,3.62404938]
[1751333678063,0.80021,2498.7,2498.6,3.74662429]
[1751333678257,0.80021,2498.7,2498.6,9.50662429]
[1751333681355,0.80021,2498.7,2498.6,8.70638429]
[1751333681863,0.80021,2498.7,2498.6,9.50662429]
[1751333683266,0.80021,2498.7,2498.6,7.25224]
[1751333683460,0.80021,2498.7,2498.6,9.50662429]
[1751333691166,5.2081,2499.0,2498.6,11.91418429]
[1751333691167,3.2078,2499.0,2498.6,11.91418429]
[1751333691370,3.8775,2499.3,2499.2,0.80005]
[1751333691571,3.18236024,2499.7,2499.4,0.79999]
[1751333691762,1.3769,2499.7,2499.5,2.25438429]
[1751333691967,0.79992,2499.6,2499.5,6.59431429]
[1751333692163,0.79992,2499.6,2499.5,6.59434429]
[1751333692370,0.79992,2499.6,2499.5,5.79438429]
[1751333692770,0.79992,2499.6,2499.5,6.59434429]
[1751333693668,0.79992,2499.6,2499.5,5.79438429]
[1751333693872,0.79992,2499.6,2499.5,2.25438429]
[1751333694169,3.31723,2499.6,2499.2,3.2078]
[1751333694368,0.80004,2499.3,2499.2,1.62]
[1751333694569,0.80001,2499.4,2499.3,0.80001]
[1751333694774,1.3174,2499.6,2499.3,2.2]
[1751333695069,1.3174,2499.6,2499.4,0.79997]
[1751333695270,0.79999,2499.4,2499.3,0.8]
[1751333695471,0.79999,2499.4,2499.3,2.42]
[1751333695672,0.79999,2499.4,2499.3,1.62]
[1751333696376,0.79999,2499.4,2499.3,3.87438429]
[1751333697170,0.79999,2499.4,2499.3,4.02438429]
[1751333697671,0.79999,2499.4,2499.3,4.82440429]
[1751333698073,3.2078,2499.7,2499.6,0.79992]
[1751333698274,7.10316024,2500.0,2499.9,0.79983]
[1751333698574,6.39016024,2500.3,2500.2,0.79973]
[1751333698774,3.2078,2500.3,2500.2,3.89961]
[1751333698966,4.0075,2500.3,2500.2,3.49]
[1751333699173,3.2078,2500.3,2500.2,6.54411429]
[1751333699373,4.0075,2500.3,2500.2,5.74438429]
[1751333699570,3.2078,2500.3,2500.2,6.54411429]
[1751333699774,3.18236024,2500.9,2500.2,10.74438429]
[1751333700069,0.79951,2500.9,2500.8,2.25438429]
[1751333700376,1.2941,2501.1,2500.8,1.86]
[1751333700675,0.79954,2500.8,2500.6,0.7996]
[1751333700880,1.9636,2500.7,2500.6,4.10398429]
[1751333701080,0.6695,2500.7,2500.6,4.10398429]
[1751333701375,0.79946,2501.1,2500.6,3.30438429]
[1751333701576,0.79948,2501.0,2500.9,2.25438429]
[1751333701786,2.09358,2501.0,2500.9,3.93438429]
[1751333702983,0.79954,2500.8,2500.7,2.25438429]
[1751333703282,0.79963,2500.6,2500.4,0.79966]
[1751333703482,1.48438,2500.7,2500.5,3.05400429]
[1751333703678,0.6848,2500.7,2500.6,0.7996]
[1751333703878,0.79949,2501.0,2500.6,3.41]
[1751333704076,3.8773,2501.1,2500.9,2.25438429]
[1751333704280,2.16701,2501.0,2500.9,3.91438429]
[1751333704484,0.79954,2500.8,2500.7,2.25438429]
[1751333704685,0.79954,2500.8,2500.7,4.60395429]
[1751333704884,3.2078,2500.8,2500.2,3.9193]
[1751333705074,2.0523,2500.7,2500.4,0.79966]
[1751333705278,3.2078,2500.8,2500.5,2.25438429]
[1751333705584,0.7996,2500.6,2500.5,6.73400429]
[1751333705784,0.7996,2500.6,2500.5,5.93438429]
[1751333705990,0.7996,2500.6,2500.5,6.73402429]
[1751333706185,0.79959,2500.7,2500.5,6.73402429]
[1751333706382,0.7996,2500.6,2500.5,6.73402429]
[1751333706581,0.7996,2500.6,2500.5,5.93438429]
[1751333706986,0.79959,2500.7,2500.5,6.73402429]
[1751333707287,1.305,2500.9,2500.5,5.93438429]
[1751333707480,0.79954,2500.8,2500.7,2.25438429]
[1751333707683,0.79954,2500.8,2500.7,4.12438429]
[1751333708684,0.79959,2500.7,2500.6,0.7996]
[1751333708885,0.6848,2501.0,2500.6,2.25438429]
[1751333709085,0.79952,2500.9,2500.8,0.79952]
[1751333709285,0.79952,2500.9,2500.8,2.46952]
[1751333709487,1.4843,2501.0,2500.9,0.79951]
[1751333709684,0.31763226,2501.6,2500.9,0.79951]
[1751333709685,4.00714,2501.5,2501.3,0.79935]
[1751333709981,4.00712,2501.5,2501.4,1.86443775]
[1751333710177,3.2078,2501.5,2500.9,11.33]
[1751333710383,0.79944,2501.1,2501.0,2.25438429]
[1751333710587,0.79944,2501.1,2501.0,3.97438429]
[1751333711284,0.79951,2500.9,2500.8,2.25438429]
[1751333711788,0.79951,2500.9,2500.8,3.89438429]
[1751333712180,3.6295,2501.0,2500.8,3.89438429]
[1751333712386,3.6295,2501.0,2500.8,4.69390429]
[1751333712589,2.83,2501.0,2500.9,0.79951]
[1751333712781,0.79948,2501.0,2500.9,3.67]
[1751333713479,0.79946,2501.1,2501.0,0.79947]
[1751333713681,0.79946,2501.1,2501.0,3.86438429]
[1751333713890,0.79951,2500.9,2500.8,0.79953]
[1751333714087,0.79951,2500.9,2500.8,2.0]
[1751333719790,0.79951,2500.9,2500.8,2.79954]
[1751333720287,0.79951,2500.9,2500.8,2.0]
[1751333720591,0.79951,2500.9,2500.8,2.79954]
[1751333721387,0.79951,2500.9,2500.8,2.0]
[1751333721592,0.7994,2501.3,2501.2,0.79939]
[1751333721789,0.7994,2501.3,2501.2,2.80939]
[1751333721990,4.00717,2501.4,2501.3,0.79938]
[1751333722692,0.7994,2501.3,2501.2,0.7994]
[1751333722993,0.79941,2501.2,2501.1,0.6459]
[1751333723194,0.79941,2501.2,2501.1,1.51534]
[1751333723688,1.45161,2501.3,2501.2,0.79941]
[1751333724290,0.79941,2501.2,2501.1,1.44532]
[1751333724490,0.79941,2501.2,2501.1,2.35532]
[1751333725287,1.4516,2501.3,2501.2,0.79941]
[1751333725493,1.4516,2501.3,2501.2,1.81941]
[1751333726200,0.7994,2501.3,2501.2,1.81941]
[1751333727095,4.00717,2501.4,2501.3,0.79938]
[1751333727394,0.7994,2501.3,2501.2,0.79939]
[1751333727692,0.7994,2501.3,2501.2,1.74939]
[1751333730194,4.67618,2501.4,2501.3,0.79938]
[1751333730693,3.2078,2501.4,2501.3,0.79938]
[1751333730893,4.00715,2501.4,2501.3,0.79938]
[1751333731098,4.00715,2501.4,2501.1,5.32882584]
[1751333731099,0.79941,2501.2,2501.1,6.12825584]
[1751333731290,3.2078,2501.4,2501.1,6.31882584]
[1751333731593,0.79941,2501.3,2501.2,0.79939]
[1751333731790,0.79941,2501.3,2501.2,1.09]
[1751333732397,0.79941,2501.3,2501.2,1.88941]
[1751333732592,0.79941,2501.3,2501.2,1.09]
[1751333733396,4.00717,2501.4,2501.3,0.79938]
[1751333734499,0.79941,2501.3,2501.2,0.7994]
[1751333734795,0.79941,2501.3,2501.2,3.7194]
[1751333735493,4.00717,2501.4,2501.3,0.79938]
[1751333735898,4.00717,2501.4,2501.3,4.75017673]
[1751333736592,4.00717,2501.4,2501.3,3.05017673]
[1751333736793,4.00717,2501.4,2501.3,4.64017673]
[1751333737889,3.2078,2501.4,2501.3,4.64017673]
[1751333738300,4.00715,2501.4,2501.3,4.64017673]
[1751333739093,3.2078,2501.4,2501.3,4.64017673]
[1751333739298,0.6559,2501.7,2501.3,4.64017673]
[1751333739299,1.45515,2501.7,2501.6,0.79928]
[1751333739495,1.45515,2501.7,2501.4,3.05010673]
[1751333739496,0.79934,2501.5,2501.4,3.05010673]
[1751333739696,0.79931,2501.6,2501.4,4.88010673]
[1751333740193,3.18236024,2501.8,2501.7,0.79925]
[1751333740392,4.08486158,2502.1,2501.7,8.6578]
[1751333740601,6.08270158,2502.1,2501.7,5.45]
[1751333740789,0.79928,2501.6,2501.5,0.6531]
[1751333740995,5.20596,2501.7,2501.2,0.79939]
[1751333741299,1.46503,2501.5,2501.4,2.25079673]
[1751333741494,1.46503,2501.5,2501.4,4.10079673]
[1751333742495,1.46503,2501.5,2500.7,3.19776104]
[1751333742496,0.7995,2501.0,2500.8,2.25079673]
[1751333742790,0.79951,2500.9,2500.8,3.22079673]
[1751333742993,0.79957,2500.7,2500.6,0.7051]
[1751333744495,0.79948,2501.0,2500.8,0.79952]
[1751333744699,0.79948,2501.0,2500.9,2.25079673]
[1751333744901,0.79948,2501.0,2500.9,4.00079673]
[1751333745498,0.79948,2501.0,2500.9,2.25079673]
[1751333745798,0.79954,2500.8,2500.7,2.25079673]
[1751333746506,1.46024,2500.8,2500.7,2.25079673]
[1751333747002,2.81334,2500.8,2500.7,2.25079673]
[1751333747505,0.79957,2500.7,2500.6,2.95589673]
[1751333747698,0.79957,2500.7,2500.6,3.02589673]
[1751333748899,1.99894,2500.7,2500.2,58.38672]
[1751333749103,0.79969,2500.4,2500.3,0.7997]
[1751333749303,0.79969,2500.4,2500.3,2.5597]
[1751333749694,26.54882,2500.6,2500.3,1.76]
[1751333749903,26.54882,2500.6,2500.5,2.25079673]
[1751333750103,25.7492,2500.6,2500.4,2.25079673]
[1751333750302,2.10584,2500.5,2500.4,3.05046673]
[1751333750803,2.10584,2500.5,2500.4,2.25079673]
[1751333751504,0.79972,2500.3,2500.2,3.05051673]
[1751333751698,0.79972,2500.3,2500.2,2.43079673]
[1751333751898,0.79972,2500.3,2500.2,2.25079673]
[1751333752603,2.21072,2500.3,2500.2,2.25079673]
[1751333752999,0.7997,2500.3,2500.2,4.69050673]
[1751333753307,3.2078,2500.4,2500.3,0.7997]
[1751333753501,3.2078,2500.4,2500.3,6.2697]
[1751333753807,0.79966,2500.5,2500.4,0.79967]
[1751333754006,24.444,2500.7,2500.5,0.79964]
[1751333754007,1.47233,2500.6,2500.5,0.79964]
[1751333754207,1.47233,2500.6,2500.5,4.58043673]
[1751333754407,1.47233,2500.6,2500.5,3.78079673]
[1751333754607,1.47233,2500.6,2500.5,4.58043673]
[1751333755005,25.93033,2500.6,2500.5,4.58043673]
[1751333755906,25.93033,2500.6,2500.5,3.78079673]
[1751333756908,25.93033,2500.6,2500.5,2.25079673]
[1751333757110,27.28713,2500.6,2500.5,2.25079673]
[1751333758006,0.79978,2500.1,2500.0,0.79978]
[1751333758211,0.79978,2500.1,2500.0,4.95057673]
[1751333758607,0.79983,2499.9,2499.8,5.45859673]
[1751333758813,0.79983,2499.9,2499.8,7.37859673]
[1751333759209,2.8006,2500.1,2499.8,7.37859673]
[1751333759410,3.60036,2500.1,2500.0,2.25079673]
[1751333759704,3.60036,2500.1,2500.0,4.01079673]
[1751333760714,3.60036,2500.1,2500.0,4.81059673]
[1751333760912,0.79976,2500.1,2500.0,4.81059673]
[1751333761104,25.25576,2500.1,2500.0,4.81059673]
[1751333761309,0.79976,2500.1,2500.0,4.01079673]
[1751333761510,25.24976,2500.1,2500.0,4.01079673]
[1751333762306,24.45,2500.1,2499.8,5.45859673]
[1751333762609,24.45,2500.1,2500.0,2.25079673]
[1751333762816,25.24976,2500.1,2500.0,3.89079673]
[1751333763008,25.24976,2500.1,2500.0,2.25079673]
[1751333765426,1.99955,2500.0,2499.8,2.25079673]
[1751333765623,1.99955,2500.0,2499.8,2.28079673]
[1751333765624,0.79983,2499.9,2499.8,2.28079673]
[1751333765815,1.48753,2499.9,2499.8,2.28079673]
[1751333767316,1.48753,2499.9,2499.8,0.03]
[1751333767515,0.79989,2499.7,2499.6,0.6694]
[1751333767717,25.23189,2499.7,2499.6,0.14]
[1751333768827,25.23189,2499.7,2499.2,1.19887104]
[1751333768828,0.80002,2499.3,2499.2,1.19887104]
[1751333769026,0.79999,2499.4,2499.3,2.25079673]
[1751333769229,0.79999,2499.4,2499.3,2.77079673]
[1751333769531,0.79999,2499.4,2499.3,0.52]
[1751333769830,0.79999,2499.4,2499.3,3.57081673]
[1751333772230,0.79999,2499.4,2499.3,2.77079673]
[1751333772531,0.79999,2499.4,2499.3,3.57081673]
[1751333774826,25.23099,2499.4,2499.3,3.57081673]
[1751333778124,0.79999,2499.4,2499.3,3.57081673]
[1751333778325,25.21999,2499.4,2499.3,3.57081673]
[1751333781333,25.21999,2499.4,2499.3,2.77079673]
[1751333782832,25.20599,2499.4,2499.3,3.57081673]
[1751333783232,25.20599,2499.4,2499.3,2.77079673]
[1751333783433,25.20599,2499.4,2499.3,3.57081673]
[1751333783829,25.20599,2499.4,2499.3,2.77079673]
[1751333784226,31.65679673,2499.4,2498.7,3.2078]
[1751333784531,0.80016,2498.9,2498.8,3.70844673]
[1751333784729,25.20316,2498.9,2498.8,7.34829673]
[1751333784934,25.20316,2498.9,2498.8,4.44]
[1751333785134,28.41096,2498.9,2498.8,4.44]
[1751333785435,28.41096,2498.9,2498.6,0.6575]
[1751333785436,0.80024,2498.6,2498.5,0.80028]
[1751333785734,0.80024,2498.6,2498.5,3.27028]
[1751333785936,0.80024,2498.6,2498.5,2.47]
[1751333786533,0.8004,2498.1,2498.0,4.42791673]
[1751333786740,24.423,2498.2,2498.1,0.8004]
[1751333787034,24.423,2498.2,2498.1,7.00119673]